bitfinex-derivatives/quotes_SOLF0:USTF0_20260115
["timestamp","ask_amount","ask_price","bid_price","bid_amount"]
[1768515978387,9.5337397,142.43,142.37,9.41394032]
[1768515978690,5.47699573,142.42,142.37,9.41394032]
[1768515978886,5.47699573,142.41,142.37,9.41394032]
[1768515979186,9.5337397,142.43,142.37,9.41394032]
[1768515979387,5.47798757,142.42,142.37,9.41394032]
[1768515979690,5.47798757,142.41,142.37,9.41394032]
[1768515979881,9.46167499,142.45,142.39,3.04053923]
[1768515980084,8.62006256,142.44,142.37,3.04053923]
[1768515980290,8.62006256,142.43,142.37,3.04053923]
[1768515980586,5.47798757,142.42,142.37,3.04053923]
[1768515980783,5.47798757,142.41,142.37,3.04053923]
[1768515980987,3.14207499,142.42,142.37,3.04053923]
[1768515981292,5.47756953,142.41,142.37,3.04053923]
[1768515981484,9.46307499,142.42,142.37,3.04053923]
[1768515981786,5.47751619,142.41,142.37,3.04053923]
[1768515981983,9.46307499,142.42,142.37,3.04053923]
[1768515982288,5.47751731,142.41,142.37,3.04053923]
[1768515982487,9.46307499,142.42,142.37,3.04053923]
[1768515982687,5.47752811,142.41,142.37,3.04053923]
[1768515982889,9.46307499,142.42,142.37,3.04053923]
[1768515983091,5.47752811,142.41,142.37,3.04053923]
[1768515983290,9.46307499,142.42,142.37,3.04053923]
[1768515983595,5.47754026,142.41,142.37,3.04053923]
[1768515983794,9.46307499,142.42,142.37,3.04053923]
[1768515983991,5.47754026,142.41,142.37,3.04053923]
[1768515984289,9.46307499,142.42,142.37,3.04053923]
[1768515984491,5.47755108,142.41,142.37,3.04053923]
[1768515984693,9.46307499,142.42,142.37,3.04053923]
[1768515984889,5.47755108,142.41,142.37,3.04053923]
[1768515985089,9.46307499,142.42,142.37,3.04053923]
[1768515985397,5.47754884,142.41,142.38,3.32257196]
[1768515985587,9.3968358,142.44,142.38,3.32257196]
[1768515985788,5.47751172,142.43,142.38,3.32257196]
[1768515985988,5.47751172,142.42,142.38,3.32257196]
[1768515986191,5.47751172,142.41,142.38,3.32257196]
[1768515986383,9.3968358,142.44,142.38,3.32257196]
[1768515986588,5.47751009,142.43,142.38,3.32257196]
[1768515986892,5.47751009,142.42,142.38,9.64507196]
[1768515987093,5.47751009,142.41,142.38,9.64507196]
[1768515987293,9.3968358,142.44,142.38,9.64507196]
[1768515987492,5.47750962,142.43,142.38,9.64507196]
[1768515987700,5.47750962,142.42,142.38,9.64507196]
[1768515987998,5.47750962,142.41,142.38,9.64507196]
[1768515988204,9.3968358,142.44,142.38,9.64507196]
[1768515988397,5.47750837,142.43,142.38,9.64507196]
[1768515988596,5.47750837,142.42,142.38,9.64507196]
[1768515988895,5.47750837,142.41,142.38,3.32257196]
[1768515989096,9.3968358,142.44,142.38,3.32257196]
[1768515989397,5.47750617,142.43,142.38,3.32257196]
[1768515989597,8.80714799,142.42,142.36,3.20468285]
[1768515989894,8.80714799,142.41,142.36,3.20468285]
[1768515990199,3.32964182,142.41,142.36,3.20468285]
[1768515991598,3.32964182,142.41,142.36,9.52818285]
[1768515992692,6.3202,142.44,142.37,9.52758285]
[1768515992898,5.4168296,142.43,142.38,3.20468285]
[1768515993098,5.4168296,142.42,142.38,3.20468285]
[1768515993288,6.3202,142.44,142.38,3.20468285]
[1768515993495,5.41666237,142.43,142.38,3.20468285]
[1768515993695,5.41666237,142.42,142.38,3.20468285]
[1768515993897,9.64984182,142.44,142.38,3.20468285]
[1768515994099,5.41666237,142.43,142.38,3.20468285]
[1768515994303,5.41666237,142.42,142.38,3.20468285]
[1768515994603,9.64984182,142.44,142.38,9.52728285]
[1768515994803,5.41655823,142.43,142.38,9.52728285]
[1768515994993,5.41655823,142.42,142.38,9.52728285]
[1768515995191,9.64984182,142.44,142.38,9.52728285]
[1768515995390,5.41652865,142.43,142.38,9.52728285]
[1768515995596,5.41652865,142.42,142.38,9.52728285]
[1768515995801,9.64984182,142.44,142.38,9.52728285]
[1768515995997,5.41645237,142.43,142.38,9.52728285]
[1768515996199,5.41645237,142.42,142.38,9.52728285]
[1768515996504,9.64984182,142.44,142.38,9.52728285]
[1768515996696,5.4163574,142.43,142.38,9.52728285]
[1768515996897,5.4163574,142.42,142.38,9.52728285]
[1768515997197,9.64984182,142.44,142.38,9.52728285]
[1768515997398,5.41627016,142.43,142.38,9.52728285]
[1768515997697,5.41627016,142.42,142.38,9.52728285]
[1768515997897,9.64984182,142.44,142.38,9.52728285]
[1768515998105,5.41627016,142.43,142.38,9.52728285]
[1768515998301,5.41627016,142.42,142.38,9.52728285]
[1768515998505,9.64984182,142.44,142.38,9.52728285]
[1768515998697,5.41618991,142.43,142.38,9.52728285]
[1768515998897,5.41618991,142.42,142.38,9.52728285]
[1768515999100,9.64984182,142.44,142.38,9.52728285]
[1768515999306,5.41618991,142.43,142.38,9.52728285]
[1768515999505,5.41618991,142.42,142.38,9.52728285]
[1768515999802,9.64984182,142.44,142.38,9.52728285]
[1768516000105,5.41611604,142.43,142.38,9.52728285]
[1768516000297,5.41611604,142.42,142.38,9.52728285]
[1768516000498,9.64984182,142.44,142.38,9.52728285]
[1768516000694,5.41604804,142.43,142.38,9.52728285]
[1768516000898,5.41604804,142.42,142.38,9.52728285]
[1768516001099,9.64984182,142.44,142.38,9.52728285]
[1768516001313,5.41604804,142.43,142.38,9.52728285]
[1768516001605,5.41604804,142.42,142.38,9.52728285]
[1768516001904,9.64984182,142.44,142.38,9.52728285]
[1768516002203,5.41598518,142.43,142.38,9.52728285]
[1768516002403,5.41598518,142.42,142.38,9.52728285]
[1768516002705,9.64984182,142.44,142.38,9.52728285]
[1768516002905,5.41592911,142.43,142.38,9.52728285]
[1768516003105,5.41592911,142.42,142.38,9.52728285]
[1768516003405,9.64984182,142.44,142.38,9.52728285]
[1768516003608,5.41587776,142.43,142.38,9.52728285]
[1768516003793,5.41587776,142.42,142.38,9.52728285]
[1768516003997,9.64984182,142.44,142.38,9.52728285]
[1768516004200,5.41587776,142.43,142.38,9.52728285]
[1768516004500,5.41587776,142.42,142.38,9.52728285]
[1768516004700,9.64984182,142.44,142.38,9.52728285]
[1768516004997,5.41583087,142.43,142.38,9.52728285]
[1768516005197,5.41583087,142.42,142.38,9.52728285]
[1768516005402,6.3204,142.43,142.38,3.20468285]
[1768516005700,5.41581914,142.42,142.38,3.20468285]
[1768516005901,6.3204,142.43,142.38,3.20468285]
[1768516006103,5.41582025,142.42,142.38,3.20468285]
[1768516006397,6.3204,142.43,142.38,3.20468285]
[1768516006601,5.41554747,142.42,142.38,3.20468285]
[1768516006801,6.3204,142.43,142.38,3.20468285]
[1768516007002,5.41554858,142.42,142.38,3.20468285]
[1768516007207,6.3204,142.43,142.38,3.20468285]
[1768516007411,5.41530179,142.42,142.38,3.20468285]
[1768516007712,6.3204,142.43,142.38,3.20468285]
[1768516007910,5.41530179,142.42,142.38,3.20468285]
[1768516008112,6.3204,142.43,142.38,3.20468285]
[1768516008409,5.41530179,142.42,142.38,3.20468285]
[1768516008611,9.65004182,142.43,142.38,3.20468285]
[1768516008809,5.41508545,142.42,142.37,6.3231]
[1768516009009,9.65004182,142.43,142.37,6.3231]
[1768516009210,5.41509197,142.42,142.37,6.3231]
[1768516009410,9.65004182,142.43,142.37,9.52778285]
[1768516009709,5.41491698,142.42,142.37,9.52778285]
[1768516009916,9.65004182,142.43,142.37,9.52778285]
[1768516010109,5.41491588,142.42,142.37,9.52778285]
[1768516010309,9.65004182,142.43,142.37,9.52778285]
[1768516010515,3.32964182,142.43,142.38,6.3226]
[1768516019115,9.65024182,142.43,142.37,3.20468285]
[1768516021521,5.41295217,142.42,142.37,3.20468285]
[1768516021713,9.65024182,142.43,142.37,3.20468285]
[1768516021913,5.41295217,142.42,142.37,3.20468285]
[1768516022213,9.65024182,142.43,142.37,3.20468285]
[1768516022414,5.37749353,142.42,142.37,3.20468285]
[1768516022614,9.65024182,142.43,142.37,3.20468285]
[1768516022816,5.37749353,142.42,142.37,3.20468285]
[1768516023011,9.65024182,142.43,142.37,3.20468285]
[1768516023321,5.37749353,142.42,142.37,3.20468285]
[1768516023619,9.65024182,142.43,142.37,3.20468285]
[1768516023922,5.3774936,142.42,142.37,3.20468285]
[1768516024126,9.65024182,142.43,142.37,3.20468285]
[1768516024320,3.31492954,142.41,142.36,6.3233]
[1768516024516,3.31492954,142.41,142.36,9.45265517]
[1768516025921,9.63552954,142.43,142.36,9.45265517]
[1768516026122,5.37771675,142.42,142.36,9.45265517]
[1768516026323,9.63552954,142.43,142.36,9.45265517]
[1768516026516,5.37766571,142.42,142.36,9.45265517]
[1768516026718,9.63552954,142.43,142.36,9.45265517]
[1768516026917,5.37766571,142.42,142.36,9.45265517]
[1768516027125,9.63552954,142.43,142.36,9.45265517]
[1768516027321,5.37753265,142.42,142.36,9.45265517]
[1768516027522,9.63552954,142.43,142.36,9.45265517]
[1768516027824,5.37761308,142.42,142.36,9.45265517]
[1768516028123,3.31492954,142.42,142.36,9.45265517]
[1768516030625,3.31492954,142.42,142.38,6.3226]
[1768516031213,3.31492954,142.42,142.37,3.12935517]
[1768516046736,3.31492954,142.42,142.36,6.3231]
[1768516046936,3.31492954,142.42,142.36,9.36040418]
[1768516049238,6.3199,142.45,142.37,3.03730418]
[1768516049433,13.4969924,142.44,142.37,3.03730418]
[1768516049632,5.37721794,142.43,142.37,3.03730418]
[1768516049833,3.06065238,142.43,142.37,3.03730418]
[1768516050034,3.06065238,142.42,142.37,3.03730418]
[1768516050739,3.06065238,142.41,142.35,3.03730418]
[1768516051039,3.06065238,142.41,142.34,9.36150418]
[1768516051841,3.06065238,142.4,142.34,9.36150418]
[1768516052939,3.06065238,142.39,142.34,3.03730418]
[1768516057644,3.06065238,142.39,142.34,9.36170418]
[1768516058441,3.06065238,142.41,142.35,3.03730418]
[1768516059250,3.06065238,142.41,142.35,9.36120418]
[1768516059452,3.06065238,142.43,142.36,3.03730418]
[1768516059651,5.3678169,142.42,142.36,3.03730418]
[1768516059848,3.06065238,142.43,142.36,3.03730418]
[1768516060050,5.3678169,142.42,142.36,3.03730418]
[1768516060250,3.06065238,142.43,142.36,3.03730418]
[1768516060452,5.36797617,142.42,142.36,3.03730418]
[1768516060655,3.06065238,142.43,142.36,3.03730418]
[1768516060854,5.36797617,142.42,142.37,9.36030418]
[1768516061053,3.06065238,142.43,142.37,9.36030418]
[1768516061254,5.36797833,142.42,142.37,9.36030418]
[1768516061449,3.06065238,142.43,142.37,9.36030418]
[1768516061651,5.36816681,142.42,142.37,9.36030418]
[1768516061852,3.06065238,142.43,142.37,9.36030418]
[1768516062052,5.36816649,142.42,142.37,9.36030418]
[1768516062251,3.06065238,142.43,142.37,9.36030418]
[1768516062453,5.36838809,142.42,142.37,9.36030418]
[1768516062652,3.06065238,142.43,142.37,9.36030418]
[1768516062854,5.36838809,142.42,142.37,9.36030418]
[1768516063054,3.06065238,142.43,142.37,9.36030418]
[1768516063254,5.36838809,142.42,142.37,9.36030418]
[1768516063454,3.06065238,142.43,142.37,9.36030418]
[1768516063650,5.36864394,142.42,142.37,9.36030418]
[1768516063850,3.06065238,142.43,142.37,9.36030418]
[1768516064051,5.36864394,142.42,142.37,9.36030418]
[1768516064254,3.06065238,142.43,142.38,3.03730418]
[1768516064453,3.06065238,142.45,142.38,3.03730418]
[1768516065853,3.06065238,142.45,142.39,6.3221]
[1768516066256,3.06065238,142.48,142.42,3.03730418]
[1768516066560,10.39269682,142.47,142.42,3.03730418]
[1768516066759,3.06065238,142.48,142.42,3.03730418]
[1768516066960,5.36634851,142.47,142.42,3.03730418]
[1768516067155,3.06065238,142.48,142.42,3.03730418]
[1768516067460,5.36456949,142.47,142.42,3.03730418]
[1768516067760,3.06065238,142.48,142.42,3.03730418]
[1768516068058,5.36456949,142.47,142.42,3.03730418]
[1768516068249,3.06065238,142.48,142.42,3.03730418]
[1768516068449,5.36305834,142.47,142.42,3.03730418]
[1768516068656,3.06065238,142.48,142.42,3.03730418]
[1768516068950,5.36305834,142.47,142.42,3.03730418]
[1768516069150,9.37895238,142.48,142.42,3.03730418]
[1768516069356,5.36174045,142.47,142.42,3.03730418]
[1768516069664,9.37895238,142.48,142.42,3.03730418]
[1768516069860,5.36174045,142.47,142.42,3.03730418]
[1768516070166,9.37895238,142.48,142.42,3.03730418]
[1768516070362,5.3605727,142.47,142.42,3.03730418]
[1768516070663,9.37895238,142.48,142.42,3.03730418]
[1768516070862,5.3605727,142.47,142.42,3.03730418]
[1768516071062,9.37895238,142.48,142.42,3.03730418]
[1768516071264,5.3605727,142.47,142.42,3.03730418]
[1768516071456,9.37895238,142.48,142.42,3.03730418]
[1768516071660,5.35955795,142.47,142.43,3.2699654]
[1768516071861,3.06065238,142.48,142.42,6.3207]
[1768516075665,3.06065238,142.48,142.41,3.2699654]
[1768516075870,3.21527619,142.47,142.41,3.2699654]
[1768516078569,3.21527619,142.47,142.41,9.5911654]
[1768516080673,3.21527619,142.47,142.41,3.2699654]
[1768516081674,9.53397619,142.47,142.4,6.3215]
[1768516081868,3.21527619,142.46,142.4,6.3215]
[1768516082270,3.21527619,142.46,142.4,9.5914654]
[1768516082874,3.21527619,142.46,142.37,98.3568]
[1768516082875,3.21527619,142.48,142.41,3.2699654]
[1768516083779,3.21527619,142.47,142.41,9.5912654]
[1768516091180,9.53397619,142.47,142.41,9.5912654]
[1768516092285,6.3182,142.49,142.42,3.2699654]
[1768516092488,3.21527619,142.49,142.42,3.2699654]
[1768516100780,3.09743191,142.53,142.42,0.65251671]
[1768516100984,3.09743191,142.51,142.42,0.65251671]
[1768516101594,98.2595,142.52,142.42,0.65251671]
[1768516101595,3.09743191,142.49,142.42,0.65251671]
[1768516101890,3.09743191,142.49,142.39,0.65251649]
[1768516102493,3.09743191,142.48,142.42,6.3208]
[1768516107295,3.09743191,142.48,142.42,6.97296472]
[1768516115804,3.09743191,142.48,142.43,0.65216298]
[1768516119307,6.3178,142.49,142.43,6.97256298]
[1768516119605,5.40288824,142.48,142.43,6.97256298]
[1768516119809,9.6620763,142.49,142.43,6.97256298]
[1768516120105,5.40288824,142.48,142.43,6.97256298]
[1768516120307,9.6620763,142.49,142.43,6.97256298]
[1768516120506,5.4028835,142.48,142.43,6.97256298]
[1768516120807,9.6620763,142.49,142.43,6.97256298]
[1768516121102,5.40288461,142.48,142.43,6.97256298]
[1768516121309,3.3442763,142.49,142.44,0.65216209]
[1768516121507,5.40293142,142.48,142.44,0.65216209]
[1768516121705,3.3442763,142.49,142.44,0.65216209]
[1768516121908,5.40292552,142.48,142.44,0.65216209]
[1768516122109,3.3442763,142.49,142.44,0.65216209]
[1768516122406,3.3442763,142.51,142.45,0.65216192]
[1768516122712,5.40234118,142.5,142.45,0.65216192]
[1768516122900,5.40234118,142.49,142.45,0.65216192]
[1768516123107,9.6611763,142.51,142.45,0.65216192]
[1768516123308,5.40235698,142.5,142.45,0.65216192]
[1768516123508,5.40235698,142.49,142.45,0.65216192]
[1768516123707,9.6611763,142.51,142.45,0.65216192]
[1768516123909,5.4016469,142.5,142.45,0.65216192]
[1768516124108,5.4016469,142.49,142.45,0.65216192]
[1768516124314,9.6611763,142.51,142.45,0.65216192]
[1768516124515,5.40105255,142.5,142.45,0.65216192]
[1768516124712,5.40105255,142.49,142.45,0.65216192]
[1768516124919,9.6611763,142.51,142.45,0.65216192]
[1768516125114,5.40105145,142.5,142.45,0.65216192]
[1768516125313,5.40105145,142.49,142.45,0.65216192]
[1768516125509,9.6611763,142.51,142.45,0.65216192]
[1768516125822,5.4005245,142.5,142.45,0.65216192]
[1768516126013,9.6611763,142.51,142.45,0.65216192]
[1768516126014,5.4005245,142.49,142.45,0.65216192]
[1768516126213,9.6611763,142.51,142.45,0.65216192]
[1768516126513,5.40012685,142.5,142.45,0.65216192]
[1768516126713,5.40012685,142.49,142.45,0.65216192]
[1768516126918,9.6611763,142.51,142.45,0.65216192]
[1768516127216,5.40012685,142.5,142.45,0.65216192]
[1768516127416,5.40012685,142.49,142.45,0.65216192]
[1768516127618,9.6611763,142.51,142.45,0.65216192]
[1768516127818,5.40000749,142.5,142.45,0.65216192]
[1768516128121,3.3442763,142.52,142.46,0.65216093]
[1768516128321,5.39909976,142.51,142.46,0.65216093]
[1768516128523,3.3442763,142.52,142.46,0.65216093]
[1768516128715,5.39909865,142.51,142.46,0.65216093]
[1768516128921,3.3442763,142.51,142.46,0.65216093]
[1768516133223,3.3442763,142.51,142.45,6.3195]
[1768516133618,3.3442763,142.51,142.44,0.65432666]
[1768516133619,3.3442763,142.51,142.44,6.97422666]
[1768516137227,3.3442763,142.51,142.45,0.65432608]
[1768516139228,5.39622329,142.5,142.45,0.65432608]
[1768516139420,3.3442763,142.51,142.45,0.65432608]
[1768516140530,3.3442763,142.51,142.45,6.97382608]
[1768516144831,3.04747104,142.56,142.47,0.65432499]
[1768516145034,3.04747104,142.54,142.47,0.65432499]
[1768516145234,3.04747104,142.53,142.47,0.65432499]
[1768516145831,3.04747104,142.53,142.46,6.319]
[1768516154734,9.36347104,142.53,142.46,6.319]
[1768516154941,8.45004024,142.52,142.46,6.319]
[1768516155141,3.04747104,142.52,142.46,6.319]
[1768516157543,3.04747104,142.51,142.45,0.65432486]
[1768516158244,6.3173,142.5,142.45,0.65432486]
[1768516159744,9.36477104,142.5,142.45,0.65432486]
[1768516160945,3.04747104,142.5,142.45,0.65432486]
[1768516161843,3.04747104,142.5,142.43,0.65405187]
[1768516162440,9.63773664,142.49,142.43,0.65405187]
[1768516162644,3.31983664,142.48,142.43,0.65405187]
[1768516162846,3.31983664,142.48,142.42,6.3208]
[1768516163045,3.31983664,142.48,142.42,6.97485177]
[1768516163446,3.31983664,142.47,142.42,0.65405177]
[1768516164548,3.31983664,142.47,142.41,6.3212]
[1768516166248,3.31983664,142.47,142.41,6.97420763]
[1768516167448,3.10150363,142.46,142.41,0.65300763]
[1768516167647,3.10150363,142.46,142.36,98.3664]
[1768516167648,3.10150363,142.46,142.38,0.65300753]
[1768516168252,9.42110363,142.45,142.38,0.65300753]
[1768516169850,9.42110363,142.45,142.39,0.65300724]
[1768516172551,9.42110363,142.45,142.39,6.97520724]
[1768516172751,3.10150363,142.45,142.39,6.97520724]
[1768516193173,3.10150363,142.45,142.4,0.65403314]
[1768516193668,2.21018511,142.44,142.4,6.97553314]
[1768516201272,2.21018511,142.46,142.41,6.3213]
[1768516201576,9.55221738,142.47,142.41,6.3213]
[1768516201875,2.21018511,142.46,142.41,6.3213]
[1768516204078,5.44370249,142.46,142.41,6.3213]
[1768516205476,3.23351738,142.49,142.43,0.65403234]
[1768516205676,5.44328354,142.48,142.43,0.65403234]
[1768516205871,5.44328354,142.47,142.43,0.65403234]
[1768516206073,5.44370249,142.49,142.43,0.65403234]
[1768516206268,5.44304517,142.48,142.43,0.65403234]
[1768516206474,5.44304517,142.47,142.43,0.65403234]
[1768516206781,5.44370249,142.49,142.43,6.97413234]
[1768516206979,5.44508263,142.48,142.43,6.97413234]
[1768516207278,5.44508263,142.47,142.43,6.97413234]
[1768516207578,5.44370249,142.49,142.43,6.97413234]
[1768516207778,5.44666613,142.48,142.43,6.97413234]
[1768516207978,5.44666613,142.47,142.43,6.97413234]
[1768516208171,5.44370249,142.49,142.43,6.97413234]
[1768516208372,5.44798387,142.48,142.43,6.97413234]
[1768516208674,5.44798387,142.47,142.43,6.97413234]
[1768516208876,3.23351738,142.5,142.44,0.65403209]
[1768516209073,5.44793827,142.49,142.44,0.65403209]
[1768516209275,5.44793827,142.48,142.44,0.65403209]
[1768516209468,3.23351738,142.5,142.45,6.97353209]
[1768516221988,9.41233653,142.52,142.46,0.65274058]
[1768516222195,9.41233653,142.52,142.46,6.97184058]
[1768516236614,3.09583653,142.52,142.46,6.97184058]
[1768516238014,3.09583653,142.52,142.47,6.3186]
[1768516242017,3.09583653,142.52,142.47,6.97279822]
[1768516250226,3.09583653,142.52,142.48,6.3182]
[1768516262536,9.44140457,142.54,142.48,6.9705232]
[1768516262737,5.41779733,142.53,142.48,6.9705232]
[1768516262925,9.44140457,142.54,142.48,6.9705232]
[1768516263130,5.41779514,142.53,142.48,6.9705232]
[1768516263326,3.12580457,142.54,142.49,6.3178]
[1768516263535,5.41775168,142.53,142.49,6.3178]
[1768516263739,3.12580457,142.54,142.49,6.3178]
[1768516263938,5.41774949,142.53,142.49,6.3178]
[1768516264141,3.12580457,142.54,142.49,6.3178]
[1768516264436,5.41744208,142.53,142.49,6.3178]
[1768516264633,3.12580457,142.54,142.49,6.3178]
[1768516264939,5.41764214,142.53,142.49,6.3178]
[1768516265139,3.12580457,142.54,142.49,6.3178]
[1768516265450,5.41737534,142.53,142.49,6.3178]
[1768516265641,3.12580457,142.54,142.49,6.3178]
[1768516265836,5.41760188,142.53,142.49,6.3178]
[1768516266026,3.12580457,142.54,142.49,6.3178]
[1768516266330,5.41760188,142.53,142.49,6.3178]
[1768516266532,3.12580457,142.54,142.49,6.3178]
[1768516266827,5.41747796,142.53,142.49,6.3178]
[1768516267031,3.12580457,142.54,142.49,6.3178]
[1768516267232,5.41747796,142.53,142.48,0.6523232]
[1768516267437,3.12580457,142.54,142.48,0.6523232]
[1768516267637,5.41736046,142.53,142.48,0.6523232]
[1768516267833,3.12580457,142.54,142.48,0.6523232]
[1768516268033,5.41736268,142.53,142.48,0.6523232]
[1768516268341,3.12580457,142.54,142.48,0.6523232]
[1768516268535,5.41729601,142.53,142.48,0.6523232]
[1768516268732,3.12580457,142.54,142.48,0.6523232]
[1768516269039,5.41729601,142.53,142.48,6.9705232]
[1768516269337,3.12580457,142.54,142.48,6.9705232]
[1768516269541,5.41727545,142.53,142.48,6.9705232]
[1768516269732,3.12580457,142.54,142.48,6.9705232]
[1768516269934,5.41727545,142.53,142.48,6.9705232]
[1768516270136,3.12580457,142.54,142.48,6.9705232]
[1768516270440,8.54296206,142.53,142.48,0.6523232]
[1768516270642,3.12580457,142.53,142.48,0.6523232]
[1768516271450,3.12580457,142.53,142.48,6.9705232]
[1768516273645,9.44180457,142.53,142.46,6.97102284]
[1768516273943,8.54359527,142.52,142.46,6.97102284]
[1768516274144,3.12580457,142.52,142.46,6.97102284]
[1768516277337,3.12580457,142.51,142.46,6.97102284]
[1768516279952,3.12580457,142.5,142.44,6.97202269]
[1768516280243,3.12580457,142.49,142.44,0.65232269]
[1768516280444,9.44360457,142.49,142.44,0.65232269]
[1768516282551,3.13097535,142.47,142.42,0.65899538]
[1768516283756,3.13097535,142.47,142.42,6.97959538]
[1768516285249,2.20799003,142.46,142.4,6.98039531]
[1768516285754,2.20799003,142.46,142.41,0.65899528]
[1768516286453,5.47239683,142.46,142.41,0.65899528]
[1768516286952,5.47239683,142.44,142.39,0.65523767]
[1768516287254,5.47239683,142.44,142.35,0.65523767]
[1768516287953,5.47239683,142.44,142.34,98.3791]
[1768516287954,11.79239683,142.44,142.38,0.65523764]
[1768516288850,3.2644068,142.43,142.38,0.65523764]
[1768516289046,3.2644068,142.43,142.37,6.323]
[1768516289753,3.2644068,142.43,142.37,6.9782376]
[1768516291351,3.2644068,142.42,142.36,0.65523758]
[1768516292258,8.52869003,142.43,142.36,0.65523758]
[1768516292757,11.79309683,142.43,142.37,0.65523753]
[1768516294955,5.47239683,142.44,142.38,0.65523749]
[1768516296863,11.79239683,142.44,142.38,0.65523749]
[1768516300469,3.2644068,142.44,142.39,0.65523739]
[1768516302163,3.2644068,142.44,142.39,6.97723739]
[1768516302360,11.79189683,142.46,142.39,6.97723739]
[1768516302972,3.2644068,142.45,142.39,6.97723739]
[1768516304563,3.2644068,142.45,142.4,6.3217]
[1768516308169,3.2644068,142.45,142.41,6.3213]
[1768516310475,3.2644068,142.48,142.42,6.3208]
[1768516310675,2.20799003,142.46,142.42,6.3208]
[1768516313467,5.31589879,142.44,142.4,6.3216]
[1768516314173,2.20799003,142.44,142.4,6.3216]
[1768516316968,2.20799003,142.45,142.4,6.3216]
[1768516317369,5.31589879,142.45,142.4,6.3216]
[1768516317979,3.10790876,142.44,142.4,6.3216]
[1768516318275,3.10790876,142.44,142.38,3.22171733]
[1768516318276,5.31589879,142.47,142.41,9.54301733]
[1768516323877,5.31589879,142.47,142.42,3.22171733]
[1768516325381,5.31589879,142.47,142.42,9.54251733]
[1768516325577,3.10790876,142.47,142.42,9.54251733]
[1768516331782,3.10790876,142.48,142.43,3.22171733]
[1768516332486,8.52589003,142.49,142.43,3.22171733]
[1768516332681,5.45047107,142.48,142.43,3.22171733]
[1768516332986,11.63379879,142.49,142.43,3.22171733]
[1768516333281,5.45047107,142.48,142.43,3.22171733]
[1768516333482,11.63379879,142.49,142.43,3.22171733]
[1768516333682,5.44999046,142.48,142.43,3.22171733]
[1768516333882,11.63379879,142.49,142.43,3.22171733]
[1768516334081,5.44998714,142.48,142.43,3.22171733]
[1768516334284,11.63379879,142.49,142.43,3.22171733]
[1768516335674,5.31589879,142.49,142.43,9.54211733]
[1768516338586,3.10790876,142.49,142.43,9.54211733]
[1768516344280,5.45138732,142.48,142.43,9.54211733]
[1768516344486,3.10790876,142.49,142.43,9.54211733]
[1768516344680,5.45138732,142.48,142.43,9.54211733]
[1768516344874,3.10790876,142.49,142.43,9.54211733]
[1768516345075,5.45138732,142.48,142.43,9.54211733]
[1768516345281,3.10790876,142.49,142.43,9.54211733]
[1768516345588,5.45211141,142.48,142.43,9.54211733]
[1768516345783,3.10790876,142.49,142.43,9.54211733]
[1768516345983,5.45211141,142.48,142.43,9.54211733]
[1768516346184,3.10790876,142.49,142.43,9.54211733]
[1768516346385,5.45270803,142.48,142.43,9.54211733]
[1768516346590,3.10790876,142.49,142.43,9.54211733]
[1768516346790,2.09253888,142.48,142.45,0.65466241]
[1768516347087,3.21335721,142.51,142.45,0.65466241]
[1768516347789,3.21335721,142.51,142.45,6.97416241]
[1768516348783,3.21335721,142.51,142.45,6.3195]
[1768516351781,9.53045721,142.51,142.45,6.3195]
[1768516355290,9.53045721,142.51,142.44,0.65466239]
[1768516356894,9.53045721,142.51,142.44,6.97466239]
[1768516358488,3.21335721,142.5,142.44,6.97466239]
[1768516359595,3.21335721,142.5,142.45,0.65466229]
[1768516384411,3.21335721,142.5,142.45,6.97416229]
[1768516386403,3.21335721,142.5,142.46,6.3191]
[1768516387110,5.43742691,142.49,142.46,6.3191]
[1768516387305,3.21335721,142.5,142.46,6.3191]
[1768516387612,5.43747692,142.49,142.46,6.3191]
[1768516387909,3.21335721,142.5,142.46,6.3191]
[1768516388109,5.43747692,142.49,142.46,6.3191]
[1768516388310,3.21335721,142.5,142.46,6.3191]
[1768516388509,5.43814629,142.49,142.46,6.3191]
[1768516388810,3.21335721,142.5,142.46,6.3191]
[1768516389012,5.43814629,142.49,142.46,6.3191]
[1768516389213,18.83027212,142.57,142.53,0.65601216]
[1768516389414,5.43820486,142.56,142.51,0.65601216]
[1768516389609,5.43820486,142.55,142.51,0.65601216]
[1768516389806,20.75725299,142.57,142.51,0.65601216]
[1768516390012,5.43695725,142.56,142.51,0.65601216]
[1768516390206,3.14876228,142.56,142.51,0.65601216]
[1768516391206,5.66359071,142.57,142.53,98.2477]
[1768516391407,3.14876228,142.6,142.54,0.65601215]
[1768516391811,3.14876228,142.6,142.54,6.97131215]
[1768516392910,3.14876228,142.63,142.56,6.3144]
[1768516393217,3.14876228,142.61,142.56,6.3144]
[1768516395114,3.14876228,142.61,142.52,98.90861212]
[1768516395308,3.14876228,142.61,142.52,0.65601212]
[1768516396819,3.14876228,142.61,142.52,6.97221212]
[1768516397324,3.14876228,142.61,142.53,6.3158]
[1768516400118,3.14876228,142.59,142.51,6.3166]
[1768516401625,3.10543183,142.56,142.49,6.3175]
[1768516402124,3.10543183,142.56,142.49,6.97514183]